bitfinex-derivatives/quotes_ETHF0:USTF0_20250524
["timestamp","ask_amount","ask_price","bid_price","bid_amount"]
[1748122542396,1.931,2541.7,2541.6,0.78666]
[1748122542592,0.5901,2541.7,2541.6,0.78666]
[1748122544002,0.5901,2541.7,2541.6,2.47286]
[1748122545008,2.2707,2541.9,2541.8,0.7866]
[1748122545207,1.3409,2541.9,2541.8,3.9944]
[1748122545504,4.889,2542.4,2542.2,0.78647]
[1748122545707,4.889,2542.4,2542.3,22.314]
[1748122545903,5.1059224,2542.4,2542.3,24.0107]
[1748122546301,5.67542,2542.4,2542.3,24.0107]
[1748122546502,5.89232254,2542.4,2542.3,24.0107]
[1748122546706,5.10590254,2542.4,2542.3,24.79715]
[1748122547011,4.889,2542.4,2542.3,24.79715]
[1748122547500,27.81189089,2542.4,2542.0,0.00590447]
[1748122547705,4.09957,2542.3,2542.0,0.00590447]
[1748122548008,1.6009,2542.2,2542.1,0.78651]
[1748122548805,1.6009,2542.2,2542.1,2.38601]
[1748122549607,3.2078,2542.4,2542.3,0.78645]
[1748122549806,5.15648449,2542.4,2542.3,0.78645]
[1748122550005,10.15648518,2542.4,2542.3,0.78645]
[1748122550403,5.15648518,2542.4,2542.3,0.78645]
[1748122551111,6.86348518,2542.4,2542.3,0.78645]
[1748122551708,0.78647,2542.3,2542.2,0.78647]
[1748122552007,2.62095546,2542.3,2542.2,23.09748]
[1748122552209,2.62095546,2542.3,2542.1,22.311]
[1748122552210,0.78648,2542.2,2542.1,22.311]
[1748122552506,2.62109147,2542.2,2542.1,22.311]
[1748122552914,0.78651,2542.1,2542.0,0.00590447]
[1748122553108,25.11822147,2542.1,2542.0,0.79244447]
[1748122553813,25.11826875,2542.1,2542.0,0.79244447]
[1748122554217,25.11826875,2542.1,2542.0,0.00590447]
[1748122555606,24.90101,2542.1,2542.0,0.00590447]
[1748122555812,3.42518477,2542.1,2542.0,0.79244447]
[1748122556817,3.42518477,2542.1,2542.0,2.50204447]
[1748122557517,3.4252568,2542.1,2542.0,2.50204447]
[1748122558722,3.2078,2542.1,2542.0,2.50204447]
[1748122558920,21.1306,2542.3,2542.2,0.78648]
[1748122559112,22.13455192,2542.3,2542.2,0.78648]
[1748122559313,0.21753938,2542.3,2542.2,0.78648]
[1748122559519,2.30536713,2542.4,2542.3,0.78645]
[1748122559718,2.52292605,2542.4,2542.3,2.43485]
[1748122560416,0.21755892,2542.4,2542.3,4.14225]
[1748122560614,0.21755892,2542.4,2542.3,5.71325]
[1748122561213,6.2658,2542.5,2542.4,0.78642]
[1748122561524,5.14263739,2542.5,2542.4,2.46092]
[1748122562120,3.42533739,2542.5,2542.4,2.46092]
[1748122563222,3.4253428,2542.5,2542.4,2.46092]
[1748122565024,3.42540084,2542.5,2542.4,2.46092]
[1748122565726,3.42543121,2542.5,2542.4,2.46092]
[1748122567022,3.42543121,2542.5,2542.3,3.2784]
[1748122567023,0.78643,2542.4,2542.2,0.78648]
[1748122567225,6.09164343,2542.3,2542.0,0.00590447]
[1748122567525,4.21194343,2542.2,2542.0,0.79242447]
[1748122567728,0.21764343,2542.1,2542.0,2.42302447]
[1748122568225,0.93,2542.2,2542.1,0.78651]
[1748122568427,1.14779488,2542.2,2542.1,2.41711]
[1748122568622,1.14779488,2542.2,2542.0,0.00590447]
[1748122568826,7.65709988,2542.1,2542.0,21.97790447]
[1748122569021,8.44360988,2542.1,2542.0,21.97790447]
[1748122569222,8.44360988,2542.1,2542.0,0.00590447]
[1748122570433,26.14360988,2542.1,2542.0,0.00590447]
[1748122570733,26.14366231,2542.1,2542.0,0.00590447]
[1748122572930,0.78657,2541.9,2541.8,0.7866]
[1748122573230,3.42565231,2541.9,2541.7,21.972]
[1748122573430,0.21785231,2541.8,2541.7,22.75863]
[1748122573627,6.08594784,2541.8,2541.7,22.75863]
[1748122574431,5.86809553,2541.8,2541.7,22.75863]
[1748122574732,6.08601923,2541.8,2541.7,22.75863]
[1748122575233,6.87261923,2541.8,2541.7,22.75863]
[1748122576431,6.87259451,2541.8,2541.7,22.75863]
[1748122576736,6.87259451,2541.8,2541.7,21.972]
[1748122577732,0.78665,2541.7,2541.5,0.00590447]
[1748122578037,1.00455898,2541.6,2541.5,1.59820447]
[1748122578228,0.21789898,2541.6,2541.5,2.38489447]
[1748122578735,6.08599451,2541.6,2541.5,2.38489447]
[1748122579035,6.87265451,2541.6,2541.5,2.38489447]
[1748122579336,6.94815077,2541.6,2541.5,2.38489447]
[1748122579537,6.16149077,2541.6,2541.5,2.38489447]
[1748122579837,6.94815077,2541.6,2541.5,2.38489447]
[1748122580136,6.94803272,2541.6,2541.5,2.38489447]
[1748122580437,10.08033646,2541.6,2541.5,2.38489447]
[1748122582037,10.08028917,2541.6,2541.5,2.38489447]
[1748122582237,10.08028917,2541.6,2541.5,1.59820447]
[1748122582437,13.37028917,2541.6,2541.5,2.38489447]
[1748122582641,13.37028917,2541.6,2541.5,1.59820447]
[1748122583640,13.37028917,2541.6,2541.5,0.00590447]
[1748122584041,13.37021418,2541.6,2541.5,0.00590447]
[1748122584942,18.37021418,2541.6,2541.5,0.00590447]
[1748122585337,13.44571044,2541.6,2541.5,0.00590447]
[1748122585641,13.4456422,2541.6,2541.5,0.00590447]
[1748122587636,13.4456422,2541.6,2541.5,0.79259447]
[1748122587836,13.4456422,2541.6,2541.5,2.39619447]
[1748122587837,13.4455777,2541.6,2541.5,2.39619447]
[1748122588246,31.1495777,2541.6,2541.5,2.39619447]
[1748122588542,31.1495777,2541.6,2541.0,0.78683]
[1748122588543,0.78683,2541.1,2541.0,0.78683]
[1748122588742,0.78685,2541.0,2540.9,3.3494]
[1748122588945,0.78689,2540.9,2540.7,1.6971]
[1748122589145,8.96527,2541.0,2540.9,0.78688]
[1748122592647,20.9138,2541.0,2540.9,0.78688]
[1748122592844,3.2078,2541.0,2540.9,0.78688]
[1748122593047,20.9138,2541.0,2540.9,0.78688]
[1748122593344,8.14119553,2541.1,2541.0,0.78685]
[1748122593645,25.84719553,2541.1,2541.0,0.78685]
[1748122594248,8.14119553,2541.1,2541.0,0.78685]
[1748122594445,25.84819553,2541.1,2541.0,0.78685]
[1748122597149,8.14119553,2541.1,2541.0,0.78685]
[1748122597345,1.96713,2541.0,2540.7,3.21370447]
[1748122597552,3.99471,2540.8,2540.7,0.00590447]
[1748122597744,21.91922568,2540.8,2540.7,0.00590447]
[1748122598047,25.11722568,2540.8,2540.7,0.00590447]
[1748122598250,30.11722568,2540.8,2540.7,0.00590447]
[1748122599243,0.78704,2540.4,2540.3,1.6758]
[1748122599448,27.00217369,2540.4,2540.1,1.6368]
[1748122599749,27.00217369,2540.4,2539.9,0.78718]
[1748122599750,1.80157816,2540.3,2539.9,0.78718]
[1748122599951,3.99495,2540.1,2539.9,22.46118]
[1748122600247,18.49616,2540.0,2539.9,22.46118]
[1748122600437,17.709,2540.0,2539.9,22.46118]
[1748122600639,18.49616,2540.0,2539.9,0.78718]
[1748122600845,17.709,2540.0,2539.9,22.46118]
[1748122601050,17.709,2540.0,2539.7,1.68170447]
[1748122601348,3.99502,2539.8,2539.7,0.00590447]
[1748122601543,9.86311553,2539.8,2539.7,0.00590447]
[1748122601745,13.43170849,2539.8,2539.7,0.00590447]
[1748122602343,9.07589553,2539.8,2539.7,0.79315447]
[1748122602549,9.07589553,2539.8,2539.7,0.00590447]
[1748122602951,9.86311553,2539.8,2539.7,0.00590447]
[1748122603744,27.57411553,2539.8,2539.7,0.00590447]
[1748122610851,29.29951553,2539.8,2539.7,0.00590447]
[1748122614154,29.30451553,2539.8,2539.7,0.00590447]
[1748122614859,27.57911553,2539.8,2539.7,0.00590447]
[1748122615255,27.57911553,2539.8,2539.7,1.68610447]
[1748122620358,27.79559732,2539.8,2539.7,1.68610447]
[1748122620954,30.96849732,2539.8,2539.7,1.68610447]
[1748122621758,30.96857314,2539.8,2539.7,1.68610447]
[1748122622559,30.96857314,2539.8,2539.7,2.47335447]
[1748122622759,30.96857314,2539.8,2539.7,1.68610447]
[1748122623255,10.07967314,2539.8,2539.7,1.68610447]
[1748122623454,27.79767314,2539.8,2539.7,1.68610447]
[1748122623954,10.07967314,2539.8,2539.7,1.68610447]
[1748122624260,27.79767314,2539.8,2539.7,2.47335447]
[1748122625562,27.79829059,2539.8,2539.7,2.47335447]
[1748122626561,27.79829059,2539.8,2539.7,1.68610447]
[1748122627265,27.79829059,2539.8,2539.7,3.31270447]
[1748122627466,30.12701722,2539.8,2539.7,3.31270447]
[1748122627673,30.12701722,2539.8,2539.7,4.09995447]
[1748122628063,1.96855,2539.2,2538.5,22.64148806]
[1748122628360,3.2078,2539.0,2538.6,1.6302]
[1748122628567,0.78754,2538.8,2538.7,0.78755]
[1748122628762,1.00471506,2538.8,2538.7,0.78755]
[1748122629371,1.00513815,2538.8,2538.7,0.78755]
[1748122629869,0.21759815,2538.8,2538.6,1.6302]
[1748122630067,0.78755,2538.8,2538.6,2.41779]
[1748122630262,0.78756,2538.7,2538.6,2.41779]
[1748122630471,1.00521888,2538.7,2538.6,23.81279]
[1748122630672,21.93101888,2538.7,2538.6,23.0252]
[1748122631370,21.93106023,2538.7,2538.6,23.0252]
[1748122631662,26.14350023,2538.7,2538.5,0.00590447]
[1748122631865,1.96907,2538.5,2537.9,0.95648806]
[1748122632069,0.78778,2538.0,2537.8,23.79662]
[1748122632261,17.718,2538.0,2537.8,23.79662]
[1748122632462,17.718,2538.0,2537.9,0.78781]
[1748122633167,23.58609553,2538.0,2537.9,2.43801]
[1748122635669,24.37388553,2538.0,2537.7,0.00590447]
[1748122635970,25.27449553,2538.0,2537.8,0.78782]
[1748122636268,25.27449553,2538.0,2537.9,1.7039]
[1748122636770,26.06227553,2538.0,2537.9,1.7039]
[1748122637468,0.78783,2537.9,2537.7,0.79375447]
[1748122637673,9.07589553,2537.8,2537.7,2.45115447]
[1748122638573,9.86373553,2537.8,2537.7,1.66330447]
[1748122638770,9.07589553,2537.8,2537.7,2.45117447]
[1748122639167,9.86373553,2537.8,2537.7,0.00590447]
[1748122639368,10.80239553,2537.8,2537.7,0.00590447]
[1748122639671,11.59023553,2537.8,2537.7,0.00590447]
[1748122640874,16.59023553,2537.8,2537.7,0.00590447]
[1748122641069,26.40823553,2537.8,2537.7,0.00590447]
[1748122641275,26.62445148,2537.8,2537.7,0.00590447]
[1748122641572,0.788,2537.4,2537.2,0.78803]
[1748122641774,19.3333,2537.3,2537.2,0.78803]
[1748122641974,25.98939553,2537.3,2537.2,0.78803]
[1748122642168,25.20139553,2537.3,2537.2,0.78803]
[1748122642771,0.78803,2537.2,2537.1,23.0921]
[1748122642978,0.78806,2537.1,2537.0,0.00397587]
[1748122643173,13.11855553,2537.1,2537.0,0.00397587]
[1748122643579,13.11855553,2537.1,2536.9,0.07549626]
[1748122643580,0.78809,2537.0,2536.9,1e-08]
[1748122643878,0.78832,2536.3,2536.1,0.78836]
[1748122644073,17.726,2536.2,2536.0,2.40718]
[1748122644374,3.2078,2536.3,2536.2,0.78834]
[1748122644677,20.9368,2536.3,2536.2,0.78834]
[1748122645279,20.9368,2536.3,2536.2,2.40714]
[1748122645879,20.9368,2536.3,2536.2,1.6188]
[1748122646080,20.9368,2536.3,2536.2,2.40714]
[1748122646574,20.9368,2536.3,2535.5,1.6989]
[1748122646884,0.7884,2536.0,2535.7,21.413]
[1748122647083,1.5912,2535.9,2535.6,3.2078]
[1748122647383,0.78851,2535.7,2535.4,23.087]
[1748122647574,0.78851,2535.7,2535.4,23.87557]
[1748122647773,2.37971,2535.7,2535.5,0.78856]
[1748122647979,3.31241,2535.7,2535.5,2.46256]
[1748122648381,2.5239,2535.7,2535.6,0.78853]
[1748122648781,0.9327,2535.7,2535.6,0.78853]
[1748122651783,0.9327,2535.7,2535.6,2.47333]
[1748122653582,5.9327,2535.7,2534.6,3.2078]
[1748122653778,5.9327,2535.7,2534.5,1.97214]
[1748122653779,3.2078,2535.1,2534.9,1.7011]
[1748122653979,0.78877,2534.8,2534.7,3.2957]
[1748122654180,3.2078,2535.1,2534.7,3.2957]
[1748122654181,2.40793,2535.0,2534.7,3.2957]
[1748122654384,2.40793,2535.0,2534.9,0.78874]
[1748122654385,1.6192,2535.0,2534.9,0.78874]
[1748122654683,21.73549,2535.1,2534.9,0.78873]
[1748122654985,21.73548,2535.1,2535.0,1.7011]
[1748122655283,20.9468,2535.1,2535.0,1.7011]
[1748122655582,21.73548,2535.1,2535.0,1.7011]
[1748122655981,21.73548,2535.1,2535.0,2.48981]
[1748122656186,21.73548,2535.1,2535.0,1.7011]
[1748122656382,20.9468,2535.1,2535.0,1.7011]
[1748122656677,3.99648,2535.1,2535.0,1.7011]
[1748122656874,20.9498,2535.1,2535.0,2.48981]
[1748122657183,21.73848,2535.1,2535.0,2.48981]
[1748122657482,23.31748,2535.1,2535.0,2.48981]
[1748122657782,22.5288,2535.1,2535.0,2.48981]
[1748122658978,23.31748,2535.1,2534.9,0.78873]
[1748122659178,23.31748,2535.1,2534.9,0.78872]
[1748122659481,23.31748,2535.1,2535.0,0.78871]
[1748122659682,22.5288,2535.1,2535.0,0.78871]
[1748122662185,23.31748,2535.1,2534.8,1.7295]
[1748122662389,22.5288,2535.1,2535.0,0.78871]
[1748122662887,20.9498,2535.1,2535.0,0.78871]
[1748122663086,3.2078,2535.1,2535.0,0.78871]
[1748122663387,3.2078,2535.1,2535.0,2.39051]
[1748122663685,3.2078,2535.4,2535.3,0.7886]
[1748122663887,20.9538,2535.4,2535.3,0.7886]
[1748122667187,20.9538,2535.4,2534.9,21.174]
[1748122667389,23.37719,2535.4,2535.2,0.78863]
[1748122667589,23.37719,2535.4,2535.3,1.7164]
[1748122667790,23.37719,2535.4,2535.3,2.50502]
[1748122667989,23.37719,2535.4,2535.3,1.7164]
[1748122668289,3.99639,2535.4,2535.3,1.7164]
[1748122668490,3.2078,2535.4,2535.3,2.50502]
[1748122669193,0.9327,2535.5,2535.4,0.78859]
[1748122669392,0.9327,2535.5,2535.4,2.50499]
[1748122670492,1.72126,2535.5,2535.4,2.50499]
[1748122670983,0.9327,2535.5,2535.4,2.50499]
[1748122671185,1.14911926,2535.5,2535.4,4.18159]
[1748122671789,0.9327,2535.5,2535.4,25.35659]
[1748122672187,1.14943795,2535.5,2535.4,25.35659]
[1748122672691,1.14943914,2535.5,2535.4,25.35659]
[1748122674486,1.14972323,2535.5,2535.4,25.35659]
[1748122677495,1.93828323,2535.5,2535.4,25.35659]
[1748122678189,1.93855219,2535.5,2535.4,25.35659]
[1748122679293,1.14999219,2535.5,2535.4,25.35659]
[1748122680193,1.15000682,2535.5,2535.4,25.35659]
[1748122680994,0.21730682,2535.5,2535.4,25.35659]
[1748122682097,5.37498702,2535.6,2535.5,0.78856]
[1748122682296,5.37498702,2535.6,2535.5,2.38756]
[1748122682297,5.59236565,2535.6,2535.5,2.38756]
[1748122682498,5.59236565,2535.6,2535.5,3.99446]
[1748122683497,3.28411863,2535.6,2535.5,3.99446]
[1748122685497,9.15221416,2535.6,2535.5,3.99446]
[1748122685699,9.15227283,2535.6,2535.5,3.99446]
[1748122686198,11.48324434,2535.6,2535.5,3.99446]
[1748122687496,10.69470434,2535.6,2535.5,3.99446]
[1748122687699,11.47324637,2535.6,2535.5,3.99446]
[1748122687894,9.34924654,2535.6,2535.5,3.99446]
[1748122689302,10.13777654,2535.6,2535.5,3.99446]
[1748122689501,9.34924654,2535.6,2535.5,3.99446]
[1748122690305,10.13777654,2535.6,2535.5,3.99446]
[1748122690605,9.34924654,2535.6,2535.5,3.99446]
[1748122691105,10.13777654,2535.6,2535.5,3.99446]
[1748122691306,9.34924654,2535.6,2535.5,3.99446]
[1748122691507,9.34937343,2535.6,2535.5,3.99446]
[1748122691703,10.13790343,2535.6,2535.5,3.2059]
[1748122692006,9.34937343,2535.6,2535.5,3.99446]
[1748122692205,10.13790343,2535.6,2535.5,3.99446]
[1748122693404,9.34951354,2535.6,2535.5,3.99446]
[1748122694309,7.01854203,2535.6,2535.5,3.99446]
[1748122695609,1.1504465,2535.6,2535.5,3.99446]
[1748122696008,1.1504465,2535.6,2535.5,8.99446]
[1748122696508,1.3352,2535.8,2535.7,0.78849]
[1748122696811,0.21654534,2535.8,2535.7,0.78849]
[1748122698407,2.1684,2536.0,2535.9,0.78843]
[1748122698603,0.21635779,2536.0,2535.9,21.72643]
[1748122698906,3.2078,2536.1,2536.0,0.7884]
[1748122699107,3.42415395,2536.1,2536.0,4.0161]
[1748122699310,0.21635395,2536.1,2536.0,9.0161]
[1748122699504,2.33687598,2536.2,2536.1,0.78837]
[1748122700310,2.33687598,2536.2,2536.1,5.78837]
[1748122700610,0.00590447,2536.2,2536.1,5.78837]
[1748122700907,0.83354447,2536.3,2536.2,0.78834]
[1748122701110,4.47e-06,2536.3,2536.2,5.64264]
[1748122701302,4.47e-06,2536.3,2536.2,10.64264]
[1748122702510,7e-07,2536.5,2536.4,0.78828]
[1748122702712,7e-07,2536.5,2536.4,21.72528]
[1748122702916,7e-07,2536.5,2536.4,26.72528]
[1748122703118,7e-07,2536.5,2536.4,28.37178]
[1748122704315,4.8712,2537.6,2537.0,1.97018]
[1748122704515,1.6679,2537.5,2537.4,0.78797]
[1748122706818,1.5645,2537.6,2537.4,0.78797]
[1748122707025,0.00591623,2537.7,2537.6,0.7879]
[1748122707219,0.00591623,2537.7,2537.6,21.7189]
[1748122707420,0.00591623,2537.7,2537.6,24.9532]
[1748122711828,0.00591623,2537.7,2537.5,4.8595]
[1748122711829,0.00591623,2537.7,2537.5,5.64742]
[1748122712131,0.79379623,2537.7,2537.6,20.928]
[1748122712332,6.66188176,2537.7,2537.6,20.928]
[1748122713634,0.78794,2537.5,2537.3,40.52298]
[1748122713831,0.78794,2537.5,2537.4,20.925]
[1748122714027,0.78793,2537.5,2537.4,20.925]
[1748122714434,0.78793,2537.5,2537.4,21.71297]
[1748122714835,0.78793,2537.5,2537.4,20.925]
[1748122715035,3.2078,2537.6,2537.4,20.925]
[1748122715237,0.78793,2537.5,2537.4,21.71295]
[1748122717438,6.66193,2537.5,2537.4,21.71295]
[1748122717837,6.66193,2537.5,2537.4,20.925]
[1748122719341,6.66193,2537.5,2537.4,21.71297]
[1748122719831,5.874,2537.5,2537.3,39.735]
[1748122720036,0.78797,2537.4,2537.3,39.735]
[1748122720237,0.78797,2537.4,2537.3,60.66]
[1748122721945,5.874,2537.5,2537.4,0.78797]
[1748122722946,0.78797,2537.4,2537.3,61.44797]
[1748122723445,6.66195,2537.5,2537.4,0.78797]
[1748122723647,5.874,2537.5,2537.4,0.78797]
[1748122725040,5.874,2537.5,2537.4,2.32467]
[1748122726547,5.874,2537.5,2537.4,0.78797]
[1748122727344,5.874,2537.5,2537.4,2.34007]
[1748122729149,5.87991623,2537.7,2537.6,0.7879]
[1748122729837,5.87991623,2537.7,2537.6,2.3703]
[1748122731148,0.00591623,2537.7,2537.6,2.3703]
[1748122732352,0.22215092,2537.7,2537.6,2.3703]
[1748122734553,0.22228301,2537.7,2537.6,2.3703]
[1748122736456,0.22232642,2537.7,2537.6,2.3703]
[1748122736658,0.22232642,2537.7,2537.6,1.5824]
[1748122737161,0.22232642,2537.7,2537.6,2.3703]
[1748122738250,0.00591623,2537.7,2537.6,2.3703]
[1748122738551,0.22233088,2537.7,2537.6,2.3703]
[1748122740153,0.00591623,2537.7,2537.6,2.3703]
[1748122740359,0.22235859,2537.7,2537.6,2.3703]
[1748122742057,0.22262307,2537.7,2537.6,2.3703]
[1748122743965,0.2226315,2537.7,2537.6,2.3703]
[1748122744159,5.2226315,2537.7,2537.3,0.78799]
[1748122744363,0.788,2537.3,2537.2,0.00591623]
[1748122744562,1.00471527,2537.3,2537.2,0.00591623]
[1748122745461,8.43621527,2537.3,2537.2,0.00591623]
[1748122745858,8.4361704,2537.3,2537.2,0.00591623]
[1748122746059,7.6481704,2537.3,2537.2,0.79394623]
[1748122746465,7.64813188,2537.3,2537.2,0.79394623]
[1748122747160,12.64813188,2537.3,2536.7,20.691]
[1748122747364,0.78816,2536.8,2536.7,20.691]
[1748122747561,1.00479188,2536.8,2536.7,20.691]
[1748122747764,5.78539188,2536.8,2536.7,20.691]
[1748122749067,5.78539188,2536.8,2536.5,0.79415623]
[1748122749068,0.78821,2536.6,2536.5,20.69891623]
[1748122749367,3.99601,2536.6,2536.5,0.00591623]
[1748122749660,4.21213857,2536.6,2536.5,0.00591623]
[1748122750269,0.78831,2536.3,2536.2,0.78833]
[1748122750763,0.78831,2536.3,2535.9,3.2078]
[1748122750764,0.78833,2536.3,2536.1,0.78835]
[1748122750960,9.0818,2536.6,2536.0,22.664]
[1748122751159,19.3319,2536.5,2536.4,0.78828]
[1748122751567,10.61951623,2536.6,2536.5,0.78825]
[1748122751762,9.08771623,2536.6,2536.5,21.48325]
[1748122751955,3.21371623,2536.6,2536.5,21.48325]
[1748122754665,0.00591623,2536.6,2536.5,21.48325]
[1748122756570,0.00591623,2536.6,2536.5,24.69105]
[1748122756867,0.00591623,2536.6,2536.5,29.69105]
[1748122757364,0.00591623,2536.6,2536.5,24.69105]
[1748122758773,3.2128,2537.1,2537.0,0.78809]
[1748122758991,3.2128,2537.1,2537.0,21.25109]
[1748122759273,3.2078,2537.3,2537.2,0.78803]
[1748122759473,5.01526542,2537.3,2537.2,0.78803]
[1748122761872,4.7996,2537.3,2537.2,0.78803]
[1748122762269,3.2078,2537.3,2537.2,0.78803]
[1748122762575,0.00591623,2537.5,2537.4,0.78797]
[1748122762769,0.00591623,2537.5,2537.4,21.25097]
[1748122770773,1.6818,2537.9,2537.8,0.78784]
[1748122771572,1.6818,2537.9,2537.8,2.47334]
[1748122772773,3.21371623,2538.1,2538.0,0.78778]
[1748122772974,3.21371623,2538.1,2538.0,21.24578]
[1748122773274,0.00591623,2538.1,2538.0,21.24578]
[1748122773581,0.00591623,2538.1,2538.0,22.93128]
[1748122788283,0.00591623,2538.1,2538.0,26.13908]
[1748122789988,6.23e-06,2538.1,2538.0,31.13908]
[1748122793379,5.874,2538.5,2538.4,0.78766]
[1748122793579,7.5016,2539.0,2538.9,0.7875]
[1748122793788,7.71769352,2539.0,2538.9,21.0305]
[1748122795189,7.5016,2539.0,2538.9,21.0305]
[1748122795383,5.874,2539.0,2538.9,21.0305]
[1748122795586,13.02297151,2539.1,2539.0,0.78747]
[1748122795889,10.692,2539.1,2539.0,2.35117]
[1748122796087,9.0818,2539.1,2539.0,3.99177]
[1748122800184,5.05281,2539.1,2539.0,7.19957]
[1748122800390,4.23777,2539.1,2539.0,21.02547]
[1748122800588,0.00591623,2539.2,2539.1,0.78744]
[1748122801282,0.00591623,2539.2,2539.1,3.90854]
[1748122804001,0.00591623,2539.2,2539.1,0.78744]
[1748122804291,0.78747,2539.0,2538.9,20.24291623]
[1748122804997,2.44947,2539.0,2538.9,20.24291623]
[1748122805495,6.68724,2539.0,2538.9,20.24291623]
[1748122806295,11.68724,2539.0,2538.9,20.24291623]
[1748122806494,11.90294716,2539.0,2538.9,0.00591623]
[1748122807000,0.7875,2538.9,2538.8,21.02453]
[1748122807189,8.9974,2538.9,2538.8,21.02453]
[1748122807695,8.9974,2538.9,2538.8,20.237]
[1748122809898,9.21319609,2538.9,2538.8,20.237]
[1748122810203,0.78753,2538.8,2538.7,59.938]
[1748122810498,7.20453,2538.8,2538.7,59.938]
[1748122810687,12.20453,2538.8,2538.7,59.938]
[1748122811794,16.4423,2538.8,2538.7,59.938]
[1748122812301,16.65815002,2538.8,2538.7,59.938]
[1748122812897,16.65815002,2538.8,2538.6,0.00591623]
[1748122812898,0.78756,2538.7,2538.6,0.00591623]
[1748122813199,0.78766,2538.4,2538.3,20.033]
[1748122813400,4.23777,2538.4,2538.3,20.033]
[1748122813599,5.02543,2538.4,2538.3,20.033]
[1748122813800,9.79493,2538.4,2538.3,20.033]
[1748122814704,0.78772,2538.2,2538.1,20.03891623]
[1748122815006,25.95629,2538.2,2538.1,0.00591623]
[1748122815195,31.17196072,2538.2,2538.1,0.00591623]
[1748122815394,0.78791,2537.6,2537.4,20.035]
[1748122815601,0.78789,2537.7,2537.5,0.78791]
[1748122815803,17.723,2537.8,2537.4,20.035]
[1748122816107,0.7879,2537.7,2537.5,0.78793]
[1748122816306,0.78791,2537.6,2537.4,20.035]
[1748122816603,0.78791,2537.6,2537.5,0.78792]
[1748122816804,0.78789,2537.7,2537.6,0.7879]
[1748122817204,17.723,2537.8,2537.5,0.78792]
[1748122817393,1.6504,2537.6,2537.5,0.78792]
[1748122818510,0.78793,2537.5,2537.4,20.82295]
[1748122818702,2.44153,2537.5,2537.4,20.82295]
[1748122819608,1.6536,2537.5,2537.4,20.82295]
[1748122820409,2.44153,2537.5,2537.4,20.82295]
[1748122820708,6.6793,2537.5,2537.4,20.82295]
[1748122821310,6.6793,2537.5,2537.4,20.035]
[1748122821506,5.89137,2537.5,2537.4,20.82297]
[1748122822510,5.89137,2537.5,2537.4,0.78797]
[1748122822705,5.89137,2537.5,2537.4,20.82697]
[1748122826809,4.23777,2537.5,2537.4,20.82697]
[1748122827010,4.23777,2537.5,2537.4,22.45217]
[1748122843427,4.45415822,2537.5,2537.4,22.45217]
[1748122843924,4.45415868,2537.5,2537.4,22.45217]
[1748122844323,4.45415884,2537.5,2537.4,22.45217]
[1748122846225,4.4544012,2537.5,2537.4,22.45217]
[1748122848128,4.45440232,2537.5,2537.4,22.45217]
[1748122849940,4.45439738,2537.5,2537.4,22.45217]
[1748122851841,4.45440099,2537.5,2537.4,22.45217]
[1748122855641,4.45443933,2537.5,2537.4,22.45217]
[1748122856242,4.45443913,2537.5,2537.4,22.45217]
[1748122857541,4.45446659,2537.5,2537.4,22.45217]
[1748122859342,4.45446659,2537.5,2537.4,25.65997]
[1748122859542,4.4544766,2537.5,2537.4,25.65997]
[1748122861243,4.4544713,2537.5,2537.4,25.65997]
[1748122866240,4.4544713,2537.5,2537.4,22.45217]
[1748122866645,4.4544713,2537.5,2537.4,23.98967]
[1748122868941,4.45446619,2537.5,2537.4,23.98967]
[1748122870747,4.45447481,2537.5,2537.4,23.98967]
[1748122874553,4.45447394,2537.5,2537.4,23.98967]
[1748122876455,4.45446695,2537.5,2537.4,23.98967]
[1748122877557,4.45446695,2537.5,2537.4,27.19747]
[1748122878353,4.23777,2537.5,2537.4,27.19747]
[1748122878557,4.45446099,2537.5,2537.4,27.19747]
[1748122880356,4.45446092,2537.5,2537.4,27.19747]
[1748122883459,4.45446092,2537.5,2537.4,25.57227]
[1748122883660,9.25296092,2537.5,2537.4,25.57227]
[1748122886064,9.25296611,2537.5,2537.4,25.57227]
[1748122889766,9.03627,2537.5,2537.4,25.57227]
[1748122889967,9.25296315,2537.5,2537.4,25.57227]
[1748122890872,9.25296315,2537.5,2537.4,5.53327]
[1748122891067,9.25296315,2537.5,2537.4,19.636]
[1748122891068,10.04089315,2537.5,2537.4,19.636]
[1748122891671,10.04085361,2537.5,2537.4,19.636]
[1748122891873,12.37182512,2537.5,2537.4,19.636]
[1748122892272,12.37182512,2537.5,2537.4,20.42397]
[1748122892668,9.25292361,2537.5,2537.4,20.42397]
[1748122893271,9.25292361,2537.5,2537.4,0.78797]
[1748122893465,9.25292361,2537.5,2537.4,20.42397]
[1748122893667,9.25322221,2537.5,2537.4,20.42397]
[1748122894671,10.04115221,2537.5,2537.4,20.42397]
[1748122895174,12.37212372,2537.5,2537.4,20.42397]
[1748122895472,12.37212502,2537.5,2537.4,20.42397]
[1748122895673,11.58419502,2537.5,2537.4,20.42397]
[1748122897277,12.37212502,2537.5,2537.4,20.42397]
[1748122900378,10.04115351,2537.5,2537.4,20.42397]
[1748122900678,10.04115351,2537.5,2537.4,0.78797]
[1748122900980,10.04115351,2537.5,2537.4,20.42497]
[1748122901178,10.04120484,2537.5,2537.4,20.42497]
[1748122904181,10.04119173,2537.5,2537.4,20.42497]
[1748122905684,10.04119173,2537.5,2537.4,0.78797]
[1748122905981,10.04119173,2537.5,2537.4,20.21797]
[1748122907083,10.0412001,2537.5,2537.4,20.21797]
[1748122910185,12.37217161,2537.5,2537.4,20.21797]
[1748122910785,12.15517151,2537.5,2537.4,20.21797]
[1748122910986,0.788,2537.4,2537.3,0.78797]
[1748122911190,2.60112025,2537.4,2537.3,20.21797]
[1748122911884,1.81312025,2537.4,2537.3,20.21797]
[1748122914688,1.81315881,2537.4,2537.3,20.21797]
[1748122914888,6.05092881,2537.4,2537.3,20.21797]
[1748122915684,6.83889881,2537.4,2537.3,20.21797]
[1748122916991,6.05092881,2537.4,2537.3,20.21797]